bitfinex/quotes_BTCUSD_20250211
["timestamp","ask_amount","ask_price","bid_price","bid_amount"]
[1739240587639,0.24109799,97823.0,97822.0,0.00054987]
[1739240588831,0.24809799,97823.0,97822.0,0.00154987]
[1739240589028,0.25409799,97823.0,97822.0,0.00154987]
[1739240589489,0.20554657,97823.0,97822.0,0.00154987]
[1739240589872,0.35888457,97823.0,97822.0,0.00154987]
[1739240590374,0.61138822,97823.0,97822.0,0.00154987]
[1739240590577,0.59938822,97823.0,97822.0,0.00154987]
[1739240590754,0.56792555,97823.0,97822.0,0.00054987]
[1739240590972,0.6704292,97823.0,97822.0,0.00054987]
[1739240591174,0.6644292,97823.0,97822.0,0.00054987]
[1739240591342,0.6704292,97823.0,97822.0,0.00054987]
[1739240591743,0.6644292,97823.0,97822.0,0.00054987]
[1739240591944,0.67900927,97823.0,97822.0,0.00054987]
[1739240592130,0.67200927,97823.0,97822.0,0.00054987]
[1739240592335,0.67200927,97823.0,97803.0,0.1534747]
[1739240592336,0.53146827,97823.0,97803.0,0.1534747]
[1739240592546,0.204463,97817.0,97803.0,0.0001067]
[1739240592759,0.153352,97814.0,97803.0,0.1534757]
[1739240592958,0.01121823,97813.0,97803.0,0.1534757]
[1739240593160,0.16457223,97813.0,97803.0,0.0001067]
[1739240593665,0.153356,97812.0,97803.0,0.0001067]
[1739240593886,0.05470409,97811.0,97804.0,0.153367]
[1739240594105,0.01121804,97811.0,97806.0,0.153364]
[1739240594317,0.02858007,97813.0,97806.0,0.153364]
[1739240594530,0.06212626,97811.0,97806.0,0.153364]
[1739240594733,0.01121795,97810.0,97806.0,0.153364]
[1739240595171,0.01121795,97810.0,97804.0,0.153367]
[1739240595818,0.01904132,97809.0,97804.0,0.153367]
[1739240596018,0.01119475,97808.0,97804.0,0.153367]
[1739240597104,0.01904132,97807.0,97804.0,0.153367]
[1739240597319,0.01119456,97806.0,97804.0,0.153367]
[1739240597565,0.01904132,97807.0,97803.0,0.0001067]
[1739240597766,0.01904132,97807.0,97805.0,0.153365]
[1739240597973,0.01119456,97806.0,97805.0,0.153365]
[1739240598173,0.01904132,97807.0,97805.0,0.153365]
[1739240598388,0.01904132,97806.0,97805.0,0.153365]
[1739240599728,0.01904132,97811.0,97805.0,0.153365]
[1739240599935,0.007,97807.0,97805.0,0.153365]
[1739240600136,0.1234,97806.0,97803.0,0.0001067]
[1739240600544,0.01119446,97805.0,97803.0,0.0001067]
[1739240601805,0.01119446,97805.0,97804.0,0.153367]
[1739240602366,0.01719446,97805.0,97803.0,0.1534757]
[1739240602566,0.03255804,97805.0,97803.0,0.1534757]
[1739240603077,0.01719446,97805.0,97803.0,0.1534757]
[1739240603284,0.01904132,97804.0,97803.0,0.1534757]
[1739240603515,0.01904132,97804.0,97803.0,0.0001067]
[1739240603722,0.03023569,97804.0,97803.0,0.0001067]
[1739240604491,0.03523569,97804.0,97803.0,0.0001067]
[1739240604673,0.08764226,97804.0,97803.0,0.0001067]
[1739240604889,0.08264226,97804.0,97803.0,0.0001067]
[1739240605098,0.08764226,97804.0,97803.0,0.0001067]
[1739240605544,0.08264226,97804.0,97803.0,0.0001067]
[1739240605803,0.1199302,97804.0,97803.0,0.0001067]
[1739240606017,0.12750924,97804.0,97803.0,0.0001067]
[1739240606227,0.07510267,97804.0,97803.0,0.0001067]
[1739240607070,0.06810267,97804.0,97803.0,0.0001067]
[1739240607413,0.07510267,97804.0,97803.0,0.0001067]
[1739240607630,0.06810267,97804.0,97803.0,0.0001067]
[1739240608662,0.07510267,97804.0,97803.0,0.0001067]
[1739240608866,0.15219871,97804.0,97803.0,0.0001067]
[1739240609621,0.30556571,97804.0,97803.0,0.0001067]
[1739240610499,0.29856571,97804.0,97803.0,0.0001067]
[1739240610709,0.30456571,97804.0,97803.0,0.0001067]
[1739240612284,0.48876936,97804.0,97803.0,0.0001067]
[1739240612509,0.68386936,97804.0,97803.0,0.0001067]
[1739240613362,0.67786936,97804.0,97803.0,0.0001067]
[1739240613812,0.153375,97799.0,97798.0,7e-05]
[1739240614048,0.34875529,97799.0,97798.0,7e-05]
[1739240614272,0.48814045,97799.0,97798.0,7e-05]
[1739240614499,0.53746971,97799.0,97798.0,7e-05]
[1739240615278,0.69504875,97799.0,97798.0,7e-05]
[1739240615497,0.70204875,97799.0,97798.0,7e-05]
[1739240615922,0.72504875,97799.0,97798.0,7e-05]
[1739240616817,0.70204875,97799.0,97798.0,7e-05]
[1739240617039,0.60776359,97799.0,97798.0,7e-05]
[1739240617235,0.60076359,97799.0,97798.0,7e-05]
[1739240617457,0.60776359,97799.0,97798.0,7e-05]
[1739240617685,0.60776359,97799.0,97775.0,0.153412]
[1739240617686,0.0827,97788.0,97775.0,0.153412]
[1739240617928,0.0455,97786.0,97775.0,0.153412]
[1739240618354,0.01117674,97785.0,97775.0,0.153412]
[1739240618796,0.01117674,97785.0,97776.0,0.153411]
[1739240618998,0.01117674,97785.0,97761.0,0.01009301]
[1739240618999,0.153417,97773.0,97760.0,0.153436]
[1739240619199,0.0827,97771.0,97763.0,0.153431]
[1739240619474,0.01113912,97770.0,97760.0,0.02063566]
[1739240619688,0.0455,97768.0,97760.0,0.02063566]
[1739240619899,0.14800365,97768.0,97760.0,0.02063566]
[1739240620107,0.01114187,97767.0,97760.0,0.02063566]
[1739240620319,0.01114187,97767.0,97754.0,0.204593]
[1739240620521,0.01872091,97767.0,97765.0,0.153427]
[1739240621349,0.06805017,97767.0,97765.0,0.153427]
[1739240621556,0.08084964,97767.0,97765.0,0.153427]
[1739240621762,0.08284964,97767.0,97765.0,0.153427]
[1739240621972,0.08084964,97767.0,97765.0,0.153427]
[1739240622579,0.06805017,97767.0,97765.0,0.153427]
[1739240623239,0.04932926,97767.0,97765.0,0.153427]
[1739240623473,0.05132926,97767.0,97765.0,0.153427]
[1739240623702,0.04932926,97767.0,97765.0,0.153427]
[1739240623923,0.05232926,97767.0,97766.0,0.10261025]
[1739240624136,0.04932926,97767.0,97766.0,0.10261025]
[1739240624586,0.05132926,97767.0,97766.0,0.10261025]
[1739240624829,0.04932926,97767.0,97766.0,0.10261025]
[1739240625267,0.05132926,97767.0,97766.0,0.10261025]
[1739240625739,0.02104132,97767.0,97766.0,0.10261025]
[1739240627123,0.02204132,97767.0,97766.0,0.10261025]
[1739240627601,0.02104132,97767.0,97766.0,0.10261025]
[1739240627833,0.02304132,97767.0,97766.0,0.10261025]
[1739240628070,0.02104132,97767.0,97766.0,0.10261025]
[1739240628413,0.01904132,97767.0,97766.0,0.0001066]
[1739240628802,0.02004132,97767.0,97766.0,0.0011066]
[1739240629695,0.06554132,97767.0,97766.0,0.0011066]
[1739240630123,0.07567899,97767.0,97766.0,0.0001066]
[1739240630360,0.07667899,97767.0,97766.0,0.0001066]
[1739240630574,0.07567899,97767.0,97766.0,0.0001066]
[1739240631010,0.07767899,97767.0,97766.0,0.0001066]
[1739240631299,0.07967899,97767.0,97766.0,0.0001066]
[1739240631753,0.10596693,97767.0,97766.0,0.0001066]
[1739240631965,0.11696693,97767.0,97766.0,0.0001066]
[1739240632177,0.07146693,97767.0,97766.0,0.0001066]
[1739240632622,0.06032926,97767.0,97766.0,0.0001066]
[1739240633049,0.03004132,97767.0,97766.0,0.0001066]
[1739240633261,0.02304132,97767.0,97766.0,0.0001066]
[1739240633475,0.03004132,97767.0,97766.0,0.0001066]
[1739240633902,0.02204132,97767.0,97766.0,0.0001066]
[1739240634329,0.02604132,97767.0,97766.0,0.0001066]
[1739240634541,0.02304132,97767.0,97766.0,0.10261025]
[1739240634716,0.01904132,97767.0,97766.0,0.10261025]
[1739240634924,0.02104132,97767.0,97766.0,0.10261025]
[1739240635139,0.02204132,97767.0,97766.0,0.10261025]
[1739240635908,0.003,97767.0,97766.0,0.10363294]
[1739240636123,0.00044448,97785.0,97766.0,0.10363294]
[1739240636124,0.00757904,97776.0,97766.0,0.17273294]
[1739240636327,0.00757904,97776.0,97775.0,0.153413]
[1739240636538,0.00757904,97776.0,97775.0,0.25591665]
[1739240637151,0.00044448,97785.0,97784.0,0.153399]
[1739240638464,0.00444448,97785.0,97784.0,0.153399]
[1739240640113,0.02345023,97785.0,97784.0,0.153399]
[1739240640318,0.02945023,97785.0,97784.0,0.153399]
[1739240640905,0.02345023,97785.0,97784.0,0.153399]
[1739240641119,0.00844448,97785.0,97784.0,0.153399]
[1739240641330,0.00444448,97785.0,97784.0,0.153399]
[1739240641540,0.00744448,97785.0,97784.0,0.153399]
[1739240642814,0.00444448,97785.0,97784.0,0.153399]
[1739240643027,0.00044448,97785.0,97784.0,0.153399]
[1739240643232,0.00344448,97785.0,97784.0,0.153399]
[1739240643447,0.02445183,97785.0,97784.0,0.153399]
[1739240643920,0.02145183,97785.0,97784.0,0.153399]
[1739240644353,0.02145183,97785.0,97784.0,0.2569252]
[1739240644570,0.02445183,97785.0,97784.0,0.25590265]
[1739240647157,0.02445183,97785.0,97784.0,0.153399]
[1739240647382,0.05485774,97785.0,97784.0,0.153399]
[1739240647600,0.06601632,97785.0,97784.0,0.1535057]
[1739240653279,0.08106826,97785.0,97784.0,0.1535057]
[1739240653510,0.08106826,97785.0,97784.0,0.0001067]
[1739240653511,0.61806891,97785.0,97784.0,0.0001067]
[1739240654281,0.61320916,97785.0,97784.0,0.0001067]
[1739240654684,0.61120916,97785.0,97784.0,0.0001067]
[1739240654882,0.61820916,97785.0,97784.0,0.0001067]
[1739240655375,0.61520916,97785.0,97784.0,0.0001067]
[1739240655613,0.15342,97771.0,97762.0,0.153433]
[1739240655822,0.0825,97770.0,97762.0,0.153433]
[1739240656033,0.09365115,97770.0,97762.0,0.153433]
[1739240656922,0.00757904,97769.0,97762.0,0.153433]
[1739240657127,0.0569923,97769.0,97762.0,0.153433]
[1739240657351,0.01115096,97768.0,97762.0,0.153433]
[1739240657826,0.01115096,97768.0,97767.0,0.10250365]
[1739240658041,0.00044448,97785.0,97784.0,0.153399]
[1739240658260,0.00044448,97785.0,97770.0,0.10930818]
[1739240658469,0.00044448,97785.0,97783.0,0.1534]
[1739240659564,0.00044448,97785.0,97770.0,0.10930818]
[1739240659775,0.00044448,97785.0,97781.0,0.153403]
[1739240660415,0.01044448,97785.0,97781.0,0.153403]
[1739240660648,0.01044448,97785.0,97783.0,0.1534]
[1739240660902,0.00644448,97785.0,97783.0,0.1534]
[1739240661132,0.01044448,97785.0,97783.0,0.1534]
[1739240661767,0.00044448,97785.0,97783.0,0.1534]
[1739240662149,0.00444448,97785.0,97783.0,0.1534]
[1739240662565,0.00044448,97785.0,97783.0,0.1534]
[1739240662976,0.00844448,97785.0,97783.0,0.1534]
[1739240663387,0.00044448,97785.0,97783.0,0.1534]
[1739240664202,0.00244448,97785.0,97783.0,0.1534]
[1739240669053,0.00244448,97785.0,97784.0,0.10352622]
[1739240669370,0.00244448,97785.0,97784.0,0.1035261]
[1739240669464,0.00244448,97785.0,97784.0,0.2569251]
[1739240669672,0.00244448,97785.0,97784.0,0.25590265]
[1739240670011,0.00044448,97785.0,97784.0,0.25590265]
[1739240670218,0.00044448,97785.0,97784.0,0.25690265]
[1739240670679,0.00244448,97785.0,97784.0,0.25690265]
[1739240672317,0.00244448,97785.0,97784.0,0.51645207]
[1739240672318,4.8e-07,97785.0,97784.0,0.51645207]
[1739240672534,4.8e-07,97785.0,97784.0,0.53945207]
[1739240673240,4.8e-07,97785.0,97784.0,0.53845207]
[1739240673456,0.00122408,97785.0,97784.0,0.55145207]
[1739240676143,0.00122408,97785.0,97784.0,1.40715207]
[1739240676977,8e-08,97785.0,97784.0,1.40715207]
[1739240677743,8e-08,97785.0,97784.0,1.41015207]
[1739240677953,8e-08,97785.0,97784.0,1.39715207]
[1739240678786,8e-08,97785.0,97784.0,1.41315207]
[1739240679033,8e-08,97785.0,97784.0,1.42815207]
[1739240679903,0.00018416,97791.0,97790.0,0.323389]
[1739240680134,0.00018416,97791.0,97790.0,1.30459265]
[1739240681620,0.00118416,97791.0,97790.0,1.31859265]
[1739240682085,0.00118416,97791.0,97790.0,1.32259265]
[1739240693041,1.6e-07,97791.0,97790.0,1.32259265]
[1739240694092,0.00022408,97819.0,97818.0,0.153346]
[1739240694327,0.01017093,97819.0,97818.0,0.25584965]
[1739240694547,0.01017093,97819.0,97818.0,0.42884965]
[1739240694548,0.00022408,97819.0,97818.0,0.42884965]
[1739240695231,0.00022408,97819.0,97818.0,0.43884965]
[1739240695450,0.00622408,97819.0,97818.0,0.43884965]
[1739240695893,0.00022408,97819.0,97818.0,0.44926452]
[1739240696101,0.00122408,97819.0,97818.0,0.46226452]
[1739240696521,0.00122408,97819.0,97818.0,0.46126452]
[1739240696724,0.00122408,97819.0,97818.0,0.46426452]
[1739240697794,0.00122408,97819.0,97818.0,0.4849334]
[1739240699892,0.00122408,97819.0,97818.0,1.3406334]
[1739240701597,0.00122408,97819.0,97818.0,1.3506334]
[1739240701598,8e-08,97819.0,97818.0,1.3506334]
[1739240701802,8e-08,97819.0,97818.0,1.4290134]
[1739240702497,0.00022387,97849.0,97848.0,0.176298]
[1739240702707,0.00022387,97849.0,97848.0,0.60142343]
[1739240702888,0.00022387,97849.0,97848.0,0.61040165]
[1739240703248,0.00022387,97849.0,97848.0,0.76040165]
[1739240704324,0.00029665,97849.0,97848.0,0.76040165]
[1739240705141,0.00029665,97849.0,97848.0,0.77140165]
[1739240705299,0.00029665,97849.0,97848.0,1.31550165]
[1739240705689,0.00029665,97849.0,97848.0,1.31850165]
[1739240708574,0.00029665,97849.0,97848.0,1.32861086]
[1739240710909,0.12099665,97849.0,97848.0,1.31861086]
[1739240711767,0.12099665,97849.0,97848.0,0.78451086]
[1739240713452,0.04599665,97849.0,97848.0,0.78451086]
[1739240713712,0.00029665,97849.0,97848.0,0.78451086]
[1739240715553,0.00029665,97849.0,97848.0,0.79451086]
[1739240715763,0.00029665,97849.0,97848.0,0.78351086]
[1739240716168,0.00029665,97849.0,97848.0,0.78951086]
[1739240716384,0.00029665,97849.0,97848.0,0.79151086]
[1739240717015,0.00029665,97849.0,97848.0,0.78251086]
[1739240717163,0.00029665,97849.0,97848.0,0.78051086]
[1739240717393,0.00029665,97849.0,97848.0,0.79151086]
[1739240717603,0.00029665,97849.0,97848.0,1.32861086]
[1739240718484,7.3e-07,97850.0,97849.0,0.346297]
[1739240718732,7.3e-07,97850.0,97849.0,0.44880065]
[1739240719828,7.3e-07,97850.0,97849.0,0.45980065]
[1739240720098,7.3e-07,97850.0,97849.0,0.46280065]
[1739240720637,0.045,97872.0,97870.0,0.153264]
[1739240720846,0.04507276,97872.0,97871.0,0.44812522]
[1739240721059,0.04507276,97872.0,97871.0,0.44710365]
[1739240722921,0.00022408,97917.0,97871.0,0.44710365]
[1739240722922,0.045,97890.0,97882.0,0.163245]
[1739240723151,0.045,97890.0,97888.0,0.176236]
[1739240723386,0.045,97890.0,97888.0,0.279761]
[1739240723612,0.00066875,97889.0,97888.0,0.27873965]
[1739240723862,0.07836875,97889.0,97888.0,0.27873965]
[1739240724482,0.07936875,97889.0,97888.0,0.27873965]
[1739240724964,0.07936875,97889.0,97888.0,1.13443965]
[1739240724965,0.00166875,97889.0,97888.0,1.13443965]
[1739240725172,0.00166875,97889.0,97888.0,1.29443965]
[1739240725359,0.00166875,97889.0,97888.0,1.32530338]
[1739240725790,0.00166875,97889.0,97888.0,1.33530338]
[1739240726325,0.045,97910.0,97890.0,0.323233]
[1739240726555,0.045,97910.0,97890.0,1.30443665]
[1739240726709,0.045,97910.0,97890.0,1.36238148]
[1739240727762,0.045,97910.0,97890.0,1.36838148]
[1739240728762,0.045,97910.0,97890.0,1.38338148]
[1739240729138,0.045,97910.0,97890.0,1.3552035]
[1739240729802,0.045,97910.0,97890.0,1.32543665]
[1739240730901,0.045,97910.0,97905.0,0.153209]
[1739240731112,0.01161332,97906.0,97905.0,0.27871265]
[1739240731323,0.0217563,97906.0,97905.0,0.27871265]
[1739240731518,0.01161332,97906.0,97905.0,0.27871265]
[1739240732291,0.01161332,97906.0,97905.0,0.28571265]
[1739240733397,0.01161332,97906.0,97905.0,0.28671265]
[1739240734077,0.01161332,97906.0,97905.0,0.30737385]
[1739240734319,0.01161332,97906.0,97905.0,0.30637385]
[1739240734522,0.01161332,97906.0,97905.0,0.30937385]
[1739240735040,0.01161332,97906.0,97905.0,0.30237385]
[1739240735289,0.01161332,97906.0,97905.0,0.26871265]
[1739240735290,0.09411332,97906.0,97905.0,0.26871265]
[1739240735540,0.14071332,97906.0,97905.0,0.26871265]
[1739240735772,0.15085678,97906.0,97905.0,0.26871265]
[1739240736010,0.15085678,97906.0,97905.0,0.27866651]
[1739240736144,0.15085678,97906.0,97905.0,0.26866651]
[1739240736379,0.15085678,97906.0,97905.0,0.27366651]
[1739240736756,0.15085678,97906.0,97905.0,0.27066651]
[1739240736970,0.15085678,97906.0,97905.0,0.26566651]
[1739240737182,0.15085678,97906.0,97905.0,0.26666651]
[1739240737807,0.15085678,97906.0,97905.0,0.26766651]
[1739240738225,0.15085678,97906.0,97905.0,0.27266651]
[1739240746377,0.15085678,97906.0,97905.0,0.26766651]
[1739240746608,0.15085678,97906.0,97905.0,0.26566651]
[1739240746865,0.15208065,97906.0,97905.0,0.26566651]
[1739240748240,0.15108065,97906.0,97905.0,0.26566651]
[1739240748450,0.15208065,97906.0,97905.0,0.26566651]
[1739240749406,0.15208065,97906.0,97905.0,0.26766651]
[1739240750858,0.15108065,97906.0,97905.0,0.26766651]
[1739240751053,0.15108065,97906.0,97905.0,0.26866651]
[1739240751196,0.15108065,97906.0,97905.0,0.26766651]
[1739240751404,0.15108065,97906.0,97905.0,0.26566651]
[1739240751606,0.15108065,97906.0,97905.0,0.27066651]
[1739240752049,0.15108065,97906.0,97905.0,0.26666651]
[1739240753077,0.15108065,97906.0,97905.0,0.27066651]
[1739240753531,0.15108065,97906.0,97905.0,0.27166651]
[1739240753736,0.15108065,97906.0,97905.0,0.27066651]
[1739240754021,0.15108065,97906.0,97905.0,0.27166651]
[1739240754550,0.15108065,97906.0,97905.0,0.26666651]
[1739240755293,0.15108065,97906.0,97905.0,0.26566651]
[1739240755491,0.15108065,97906.0,97905.0,0.160209]
[1739240755902,0.15108065,97906.0,97905.0,0.153209]
[1739240756300,0.15108065,97906.0,97905.0,0.007]
[1739240756644,0.15108065,97906.0,97905.0,0.008]
[1739240757012,0.15108065,97906.0,97905.0,0.007]
[1739240757222,0.15208065,97906.0,97905.0,0.007]
[1739240757635,0.1277,97904.0,97890.0,0.0001066]
[1739240757846,0.02398065,97906.0,97890.0,0.0001066]
[1739240758053,0.0474,97900.0,97890.0,0.0001066]
[1739240758283,0.0803,97897.0,97892.0,0.153228]
[1739240758487,0.01383719,97906.0,97892.0,0.153228]
[1739240758488,0.0803,97895.0,97892.0,0.153228]
[1739240758690,0.1277,97894.0,97891.0,0.2044146]
[1739240758898,0.1277,97893.0,97892.0,0.153229]
[1739240759102,0.13782512,97893.0,97892.0,0.153229]
[1739240760335,0.13782512,97893.0,97891.0,0.2044146]
[1739240760555,0.13782512,97893.0,97891.0,0.0001066]
[1739240760556,0.28093,97892.0,97891.0,0.0001066]
[1739240760936,0.29105446,97892.0,97891.0,0.0001066]
[1739240761611,0.11262811,97892.0,97890.0,0.0001066]
[1739240761829,0.280931,97891.0,97890.0,0.0001066]
[1739240762048,0.153253,97877.0,97865.0,0.15327]
[1739240762237,0.0803,97871.0,97856.0,0.08145022]
[1739240762436,0.0474,97870.0,97865.0,0.153271]
[1739240762654,0.0803,97869.0,97862.0,0.204369]
[1739240762862,0.0803,97869.0,97856.0,0.08145022]
[1739240763070,0.0803,97867.0,97866.0,0.153269]
[1739240763291,0.0803,97867.0,97863.0,0.153275]
[1739240763496,0.09041937,97867.0,97863.0,0.153275]
[1739240763701,0.0803,97867.0,97863.0,0.153275]
[1739240763911,0.01011879,97866.0,97863.0,0.153275]
[1739240764114,0.01011879,97866.0,97858.0,0.204377]
[1739240764838,0.01011879,97866.0,97864.0,0.153273]
[1739240765318,0.01388188,97866.0,97864.0,0.153273]
[1739240766481,0.01488188,97866.0,97865.0,0.153272]
[1739240766716,0.01488188,97866.0,97863.0,0.153274]
[1739240766977,0.02500116,97866.0,97863.0,0.153274]
[1739240767190,0.01488188,97866.0,97864.0,0.001]
[1739240767410,0.01388188,97866.0,97864.0,0.001]
[1739240767613,0.01488188,97866.0,97859.0,0.204375]
[1739240767770,0.01488188,97866.0,97864.0,0.153272]
[1739240767973,0.01011918,97865.0,97864.0,0.153272]
[1739240768895,0.01488188,97866.0,97864.0,0.153272]
[1739240769760,0.01425819,97865.0,97864.0,0.153272]
[1739240769965,0.01425819,97865.0,97862.0,0.153275]
[1739240770149,0.01425819,97865.0,97856.0,0.08189489]
[1739240770347,0.01012238,97864.0,97863.0,0.153274]
[1739240771133,0.0803,97867.0,97864.0,0.0001066]
[1739240772395,0.0803,97867.0,97864.0,0.1533796]
[1739240772555,0.09307,97867.0,97864.0,0.1533796]
[1739240772961,0.09307,97867.0,97864.0,0.0001066]
[1739240773133,0.0494,97866.0,97864.0,0.0001066]
[1739240773346,0.05948588,97866.0,97864.0,0.1533786]
[1739240773549,0.01535559,97865.0,97864.0,0.1533786]
[1739240773948,0.02544156,97865.0,97864.0,0.1533786]
[1739240774294,0.02544156,97865.0,97864.0,0.0001066]
[1739240774295,0.01008597,97865.0,97864.0,0.0001066]
[1739240774506,0.09078597,97865.0,97864.0,0.0011066]
[1739240775090,0.09078597,97865.0,97864.0,0.0001066]
[1739240775293,0.09078597,97865.0,97864.0,0.0011066]
[1739240775651,0.0807,97865.0,97864.0,0.0011066]
[1739240775858,0.09371,97865.0,97864.0,0.0011066]
[1739240776137,0.10379597,97865.0,97864.0,0.0011066]
[1739240776881,0.10879597,97865.0,97864.0,0.0011066]
[1739240777062,0.10379597,97865.0,97864.0,0.0001066]
[1739240777321,0.10679597,97865.0,97864.0,0.0001066]
[1739240777520,0.11179597,97865.0,97864.0,0.0001066]
[1739240777882,0.10679597,97865.0,97864.0,0.0001066]
[1739240778051,0.10379597,97865.0,97864.0,0.0001066]
[1739240778264,0.11279597,97865.0,97864.0,0.0001066]
[1739240778729,0.10779597,97865.0,97864.0,0.0001066]
[1739240779083,0.11279597,97865.0,97864.0,0.0001066]
[1739240779691,0.10879597,97865.0,97864.0,0.0001066]
[1739240780003,0.11179597,97865.0,97864.0,0.0001066]
[1739240780528,0.11079597,97865.0,97864.0,0.0001066]
[1739240780696,0.11579597,97865.0,97864.0,0.0001066]
[1739240783376,0.10278597,97865.0,97864.0,0.0001066]
[1739240783601,0.10278597,97865.0,97864.0,0.1533796]
[1739240783799,0.10278597,97865.0,97864.0,0.0001066]
[1739240784298,0.09778597,97865.0,97864.0,0.0001066]
[1739240784797,0.09578597,97865.0,97864.0,0.0001066]
[1739240784997,0.11030457,97865.0,97864.0,0.0001066]
[1739240785201,0.11330457,97865.0,97864.0,0.0001066]
[1739240787163,0.10830457,97865.0,97864.0,0.0001066]
[1739240787363,0.10530457,97865.0,97864.0,0.0001066]
[1739240787822,0.10830457,97865.0,97864.0,0.0001066]
[1739240788026,0.11230457,97865.0,97864.0,0.0001066]
[1739240788243,0.11530457,97865.0,97864.0,0.0001066]
[1739240788734,0.10078597,97865.0,97864.0,0.1533796]
[1739240789753,0.09478597,97865.0,97864.0,0.1533796]
[1739240789990,0.09778597,97865.0,97864.0,0.0001066]
[1739240795572,0.44765797,97865.0,97864.0,0.0001066]
[1739240796520,0.47938465,97865.0,97864.0,0.0001066]
[1739240796754,0.53646794,97865.0,97864.0,0.0001066]
[1739240797261,0.56819407,97865.0,97864.0,0.0001066]
[1739240797706,0.53646794,97865.0,97864.0,0.0001066]
[1739240798053,0.56818705,97865.0,97864.0,0.0001066]
[1739240798455,0.53646794,97865.0,97864.0,0.0001066]
[1739240801754,0.44765797,97865.0,97864.0,0.0001066]
[1739240807706,0.45048344,97865.0,97864.0,0.0001066]
[1739240811317,0.14721144,97865.0,97864.0,0.0001066]
[1739240811544,0.06651144,97865.0,97864.0,0.0001066]
[1739240815668,0.14631144,97865.0,97864.0,0.0001066]
[1739240815850,0.19670528,97865.0,97864.0,0.0001066]
[1739240818073,0.20715476,97865.0,97864.0,0.0001066]
[1739240818470,0.30965841,97865.0,97864.0,0.0001066]
[1739240818673,0.45965841,97865.0,97864.0,0.0001066]
[1739240818882,0.49135474,97865.0,97864.0,0.0001066]
[1739240819832,0.48835474,97865.0,97864.0,0.0001066]
[1739240820617,0.49035474,97865.0,97864.0,0.0011066]
[1739240820815,0.49835474,97865.0,97864.0,0.0021066]
[1739240820994,0.49235474,97865.0,97864.0,0.0011066]
[1739240821439,0.49935474,97865.0,97864.0,0.0021066]
[1739240823998,0.65262674,97865.0,97864.0,0.0021066]
[1739240833249,0.6022329,97865.0,97864.0,0.0021066]
[1739240841075,0.6252329,97865.0,97864.0,0.0021066]
[1739240842521,0.9475329,97865.0,97864.0,0.0021066]
[1739240843271,0.9395329,97865.0,97864.0,0.0011066]
[1739240843481,0.9545329,97865.0,97864.0,0.0021066]
[1739240843685,1.05703655,97865.0,97864.0,0.0021066]
[1739240843885,1.06403655,97865.0,97864.0,0.0021066]
[1739240845372,0.9385329,97865.0,97864.0,0.0021066]
[1739240848922,0.9615329,97865.0,97864.0,0.0021066]
[1739240849689,0.379506,97843.0,97842.0,0.08145022]
[1739240849901,0.56030598,97843.0,97842.0,0.08152298]
[1739240850110,0.63155315,97843.0,97842.0,7.276e-05]
[1739240851029,0.64655315,97843.0,97842.0,0.00107276]
[1739240851260,0.65355315,97843.0,97842.0,0.00107276]
[1739240851506,0.66155315,97843.0,97842.0,7.276e-05]
[1739240851976,0.99385315,97843.0,97842.0,7.276e-05]
[1739240852404,0.98685315,97843.0,97842.0,7.276e-05]
[1739240852611,0.97685315,97843.0,97842.0,7.276e-05]
[1739240852823,0.99085315,97843.0,97842.0,7.276e-05]
[1739240852999,1.00785315,97843.0,97842.0,7.276e-05]
[1739240853217,0.99385315,97843.0,97842.0,7.276e-05]
[1739240853417,0.98685315,97843.0,97842.0,7.276e-05]
[1739240853649,1.00085315,97843.0,97842.0,0.00017936]
[1739240853877,1.00785315,97843.0,97842.0,0.00017936]
[1739240854608,0.99785315,97843.0,97842.0,0.00017936]
[1739240855023,1.00785315,97843.0,97842.0,0.00017936]
[1739240855408,0.99785315,97843.0,97842.0,0.00017936]
[1739240855706,1.00085315,97843.0,97842.0,0.00017936]
[1739240855945,1.0180639,97843.0,97842.0,0.00017936]
[1739240856149,1.0110639,97843.0,97842.0,0.00017936]
[1739240856336,0.9970639,97843.0,97842.0,0.00017936]
[1739240856564,1.0180639,97843.0,97842.0,0.00017936]
[1739240856751,1.03843216,97843.0,97842.0,0.00017936]
[1739240856969,1.02443216,97843.0,97842.0,0.00017936]
[1739240857905,1.03843216,97843.0,97842.0,0.00017936]
[1739240859777,1.02443216,97843.0,97842.0,0.00017936]
[1739240860201,1.03243216,97843.0,97842.0,0.00017936]
[1739240860628,1.03943216,97843.0,97842.0,0.00017936]
[1739240862731,1.02443216,97843.0,97842.0,0.00017936]
[1739240862948,1.03243216,97843.0,97842.0,0.00017936]
[1739240863246,1.03943216,97843.0,97842.0,0.00017936]
[1739240863468,1.01743216,97843.0,97842.0,0.00017936]
[1739240863670,1.03943216,97843.0,97842.0,0.00017936]
[1739240863909,1.33943216,97843.0,97842.0,0.00017936]
[1739240864390,1.33943216,97843.0,97842.0,3.6e-07]
[1739240864627,1.34943216,97843.0,97842.0,3.6e-07]
[1739240865592,1.43513216,97843.0,97842.0,3.6e-07]
[1739240865860,1.33443216,97843.0,97842.0,3.6e-07]
[1739240866087,1.34243216,97843.0,97842.0,3.6e-07]
[1739240866309,1.34943216,97843.0,97842.0,3.6e-07]
[1739240866526,1.32743216,97843.0,97842.0,3.6e-07]
[1739240866750,1.34243216,97843.0,97842.0,3.6e-07]
[1739240867474,1.34943216,97843.0,97842.0,3.6e-07]
[1739240867933,1.33943216,97843.0,97842.0,3.6e-07]
[1739240868162,1.34943216,97843.0,97842.0,3.6e-07]
[1739240874627,0.303341,97821.0,97820.0,0.08145022]
[1739240874745,0.43754098,97821.0,97820.0,0.081523]
[1739240874968,0.45036578,97821.0,97820.0,0.081523]
[1739240875219,0.45036578,97821.0,97820.0,7.278e-05]
[1739240875866,0.45736578,97821.0,97820.0,7.278e-05]
[1739240876075,0.55986943,97821.0,97820.0,7.278e-05]
[1739240876286,0.55286943,97821.0,97820.0,7.278e-05]
[1739240876416,0.64406943,97821.0,97820.0,7.278e-05]
[1739240877017,0.65106943,97821.0,97820.0,7.278e-05]
[1739240877647,0.65106943,97821.0,97820.0,0.00017948]
[1739240878257,0.67136198,97821.0,97820.0,0.00017948]
[1739240878597,0.66436198,97821.0,97820.0,0.00017948]
[1739240878840,0.67136198,97821.0,97820.0,0.00017948]
[1739240881351,0.68164529,97821.0,97820.0,0.00017948]
[1739240882620,0.70464529,97821.0,97820.0,0.00017948]
[1739240883507,0.69764529,97821.0,97820.0,0.00017948]
[1739240883906,0.68264529,97821.0,97820.0,0.00017948]
[1739240884115,0.69764529,97821.0,97820.0,0.00017948]
[1739240884896,0.70464529,97821.0,97820.0,0.00017948]
[1739240888890,0.79563311,97821.0,97820.0,0.00017948]
[1739240892468,0.70464529,97821.0,97820.0,0.00017948]
[1739240900705,0.69764529,97821.0,97820.0,0.00017948]
[1739240900853,0.68264529,97821.0,97820.0,0.00017948]
[1739240901032,0.70464529,97821.0,97820.0,0.00017948]